[Event "44th Chess Olympiad Open 2022"]
[Site "Chennai"]
[Date "2022.08.06"]
[Round "8.47"]
[White "Alfaro, William"]
[Black "Munoz Santana, Jose Lisandro"]
[Result "1/2-1/2"]
[WhiteElo "2155"]
[BlackElo "2423"]
[Annotator "TA"]
[PlyCount "120"]
[EventDate "2022.??.??"]
[TimeControl "60"]

{[%evp 17,120,14,25,0,7,0,15,0,0,-5,-11,-6,0,0,0,-119,-14,-15,-25,-22,1,0,0,
-27,-6,-6,0,0,-10,-63,-65,-42,-32,-25,0,-44,-39,-47,-47,-38,-2,-9,-8,-17,-20,
-106,0,0,0,0,0,0,0,0,0,-9,0,0,0,-8,-8,-8,0,0,0,0,0,0,0,0,0,0,0,0,29978,0,0,0,0,
0,0,0,0,0,0,0,0,0,0,0,0,0,0,0,0,0,0,0,0,0,0,0,0,0,0]} 1. d4 {[%emt 0:01:02]
[%cal Yd2d4,Yd4d5]} Nf6 {[%emt 0:00:08]} 2. Nf3 {[%emt 0:00:07]} e6 {[%emt 0:
00:18]} 3. c4 {[%emt 0:00:07]} c5 {[%emt 0:00:07]} 4. d5 {[%emt 0:00:00]} d6 {
[%emt 0:00:05]} 5. Nc3 {[%emt 0:00:04]} g6 {[%emt 0:00:17]} 6. e4 {[%emt 0:15:
02]} Bg7 {[%emt 0:00:09]} 7. dxe6 {[%emt 0:01:16]} Bxe6 {[%emt 0:00:00]} 8. Bf4
{[%emt 0:03:14]} O-O {[%emt 0:18:54]} 9. Be2 {[%emt 0:14:44]} Qb6 {[%emt 0:02:
58]} 10. Qb3 {[%emt 0:01:59] E91: King's Indian: Classical: 6 Be2, unusual
replies including 6...c5 and 6...Bg4.} (10. Bxd6 Rd8 11. e5 Ne8 $17) 10... Nc6
{[%emt 0:02:27]} 11. Bxd6 {[%emt 0:08:52] [#]} Rfd8 $146 {[%emt 0:00:00] [#]
White must now prevent ...Nd4.} ({Predecessor:} 11... Rfe8 12. Rd1 Bg4 13. h3
Bxf3 14. gxf3 Nh5 15. Nd5 Qa5+ 16. Kf1 Nd4 17. Qa3 Qxa3 18. bxa3 {0-1 (55)
Szoen,D (2450)-Moldovan,D (2425) Litomysl 2005}) 12. Qxb6 {[%emt 0:00:00]} (12.
Bf4 $5 {[%cal Re1g1]}) 12... axb6 {[%emt 0:00:06]} 13. Bc7 {[%emt 0:00:00]
[%csl Yb6,Yd8]} Rdc8 {[%emt 0:00:20]} 14. Bg3 {[%emt 0:08:02]} (14. Bxb6 $2 Nd7
15. Nd5 Bxd5 16. cxd5 Nb4 $19) 14... Nd4 {[%emt 0:00:16]} 15. Bd3 {[%emt 0:00:
08]} Rd8 {[%emt 0:17:04] Threatens to win with ...Nxf3+.} 16. Nd5 {[%emt 0:05:
05]} (16. O-O-O $11) 16... Bxd5 {[%emt 0:24:37]} ({Better is} 16... Nxd5 $17
17. cxd5 Nxf3+ 18. gxf3 Bxb2) 17. exd5 $11 {[%emt 0:15:39]} (17. cxd5 $2 c4 18.
Bxc4 (18. Nxd4 $2 cxd3 19. Bh4 Ra4 $17) 18... Nc2+ 19. Ke2 Nxa1 20. Rxa1 Nxe4
$19) 17... Nxf3+ {[%emt 0:08:28]} 18. gxf3 {[%emt 0:01:55]} Nd7 {[%emt 0:00:59]
} 19. O-O {[%emt 0:02:26]} Bxb2 {[%emt 0:00:03]} 20. Rab1 {[%emt 0:00:02]} Rxa2
{[%emt 0:00:54]} 21. Rfe1 {[%emt 0:02:00] Hoping for Re2.} Bd4 {[%emt 0:00:03]}
22. Re7 {[%emt 0:06:34]} Bf6 {[%emt 0:00:22]} 23. Re2 {[%emt 0:01:23]} (23.
Ree1 $11) 23... Rxe2 $15 {[%emt 0:03:17]} 24. Bxe2 {[%emt 0:00:01]} Re8 {
[%emt 0:00:11]} 25. Kf1 {[%emt 0:00:56]} Be5 {[%emt 0:00:00]} 26. Bd1 {[%emt 0:
04:20]} Bxg3 {[%emt 0:00:58]} 27. hxg3 {[%emt 0:00:13] Endgame KRB-KRN} Ra8 {
[%emt 0:00:01] Inhibits Ba4.} 28. f4 {[%emt 0:00:01]} h5 {[%emt 0:01:04]} 29.
d6 {[%emt 0:00:55]} Ra2 {[%emt 0:00:42]} 30. Bf3 {[%emt 0:00:31]} Rd2 {[%emt 0:
00:08]} 31. Rd1 {[%emt 0:01:56]} (31. Bd5 $11 Kf8 32. Rb3) 31... Rd4 {[%emt 0:
01:09]} ({Black should try} 31... Rxd1+ $17 32. Bxd1 Kf8) 32. Rxd4 {[%emt 0:00:
17]} cxd4 {[%emt 0:00:01]} 33. Bxb7 $11 {[%emt 0:00:05] KB-KN} Kf8 {[%emt 0:00:
07]} 34. Bc6 {[%emt 0:01:07]} Nc5 {[%emt 0:00:00]} 35. Ke2 {[%emt 0:00:03]} f6
{[%emt 0:00:37]} 36. Kd2 {[%emt 0:00:00]} ({Much worse is} 36. d7 Ke7 37. Bf3
Kxd7 $17) 36... Kf7 {[%emt 0:00:02]} 37. Bd5+ {[%emt 0:00:04]} ({But not} 37.
f5 gxf5 38. Bf3 Ke6 $17) 37... Ke8 {[%emt 0:00:10]} 38. Bc6+ {[%emt 0:00:10]}
Kd8 {[%emt 0:00:26]} 39. Ke2 {[%emt 0:00:25]} f5 {[%emt 0:02:35]} 40. f3 {
[%emt 0:00:35]} Ne6 {[%emt 0:00:33]} 41. Kd3 {[%emt 0:31:47]} g5 {[%emt 0:07:
40]} 42. fxg5 {[%emt 0:00:00] f4 is the strong threat.} f4 $1 {[%emt 0:00:07]}
43. gxf4 {[%emt 0:00:00]} h4 $1 {[%emt 0:00:52] And now ...h3 would win.} 44.
f5 {[%emt 0:00:00]} Nxg5 {[%emt 0:00:00]} 45. Kxd4 {[%emt 0:00:00] White wants
to mate with Ke5.} h3 $2 {[%emt 0:00:00] [#]} (45... Nf7 $11) 46. f4 $2 {
[%emt 0:00:00]} (46. Ke5 $1 {mates} Nf7+ 47. Ke6 Ng5+ 48. Kf6 h2 49. f4 Nh3 50.
Ke5 Nf2 51. f6 Nd3+ 52. Kf5) 46... Nf7 {[%emt 0:00:01] The position is equal.}
47. c5 {[%emt 0:00:00]} bxc5+ {[%emt 0:00:28]} 48. Kxc5 {[%emt 0:00:00]} h2 {
[%emt 0:00:30]} 49. Bh1 {[%emt 0:00:00]} Kd7 {[%emt 0:01:30]} 50. Bc6+ {
[%emt 0:00:00]} Kc8 {[%emt 0:00:00]} 51. f6 {[%emt 0:00:00]} Nd8 {[%emt 0:00:
56]} 52. Bh1 {[%emt 0:00:10]} Kd7 {[%emt 0:00:05]} 53. Kd5 {[%emt 0:01:12]} Nf7
{[%emt 0:00:22]} 54. Bg2 {[%emt 0:00:42]} Nxd6 {[%emt 0:01:19]} 55. Ke5 {
[%emt 0:00:21]} Nf7+ {[%emt 0:00:00]} 56. Kf5 {[%emt 0:00:04]} Ke8 {[%emt 0:00:
17]} 57. Bc6+ {[%emt 0:00:50]} Kf8 {[%emt 0:00:01]} 58. Kg4 {[%emt 0:01:32]}
Nh6+ {[%emt 0:01:57]} 59. Kh3 {[%emt 0:00:06]} Ng8 {[%emt 0:00:09]} 60. Kxh2 {
[%emt 0:00:02]} Nxf6 {[%emt 0:00:00] Weighted Error Value: White=0.32/Black=0.
21 (precise)} 1/2-1/2

[Event "44th Chess Olympiad Open 2022"]
[Site "Chennai"]
[Date "2022.08.06"]
[Round "8.47"]
[White "Salazar Cabezas, Alberto Javier"]
[Black "Arvelo Leo, Gian Carlo"]
[Result "0-1"]
[WhiteElo "2155"]
[BlackElo "2176"]
[Annotator "NA RC"]
[PlyCount "78"]
[EventDate "2022.??.??"]
[TimeControl "60"]

1. c4 {[%emt 0:00:08]} c5 {[%emt 0:01:36]} 2. Nf3 {[%emt 0:00:11]} Nf6 {
[%emt 0:00:51]} 3. Nc3 {[%emt 0:00:08]} g6 {[%emt 0:00:24]} 4. e4 {[%emt 0:00:
00]} d6 {[%emt 0:01:04]} 5. d4 {[%emt 0:00:12]} cxd4 {[%emt 0:00:24]} 6. Nxd4 {
[%emt 0:00:06]} Bg7 {[%emt 0:00:14]} 7. Be2 {[%emt 0:00:07]} O-O {[%emt 0:00:
00]} 8. Be3 {[%emt 0:00:08]} Nc6 {[%emt 0:00:12]} 9. O-O {[%emt 0:00:14]} Bd7 {
[%emt 0:00:59]} 10. h3 {[%emt 0:00:44]} Nxd4 {[%emt 0:00:29]} 11. Bxd4 {
[%emt 0:00:07]} Bc6 {[%emt 0:00:08]} 12. Qc2 {[%emt 0:00:22]} Nd7 {[%emt 0:00:
00]} 13. Bxg7 {[%emt 0:00:15]} Kxg7 {[%emt 0:00:01]} 14. b4 {[%emt 0:00:44]} b6
{[%emt 0:04:55]} 15. Qb2 {[%emt 0:08:33]} Kg8 {[%emt 0:07:09]} 16. f4 {[%emt 0:
00:00]} Rc8 {[%emt 0:12:57]} 17. Bd3 {[%emt 0:12:35]} e5 {[%emt 0:28:24]} 18.
f5 {[%emt 0:06:24]} Qh4 {[%emt 0:03:24]} 19. Qf2 {[%emt 0:11:46]} Qxf2+ {
[%emt 0:01:52]} 20. Rxf2 {[%emt 0:00:01]} Nf6 {[%emt 0:00:16]} 21. g4 {[%emt 0:
00:00]} g5 {[%emt 0:01:25]} 22. Rg2 {[%emt 0:05:13]} Kg7 {[%emt 0:00:41]} 23.
Kf2 {[%emt 0:01:19]} Rh8 {[%emt 0:00:37]} 24. Rag1 {[%emt 0:00:32]} Ra8 {
[%emt 0:06:40]} 25. Ke3 {[%emt 0:01:34]} Kf8 {[%emt 0:03:21]} 26. Be2 {[%emt 0:
00:00]} Ke7 {[%emt 0:00:46]} 27. h4 {[%emt 0:03:13]} h6 {[%emt 0:00:15]} 28. h5
{[%emt 0:03:39]} Rhc8 {[%emt 0:02:42]} 29. Rd1 {[%emt 0:01:20]} a6 {[%emt 0:00:
00]} 30. Bf3 {[%emt 0:13:06]} Bb5 {[%emt 0:03:23]} 31. Nxb5 {[%emt 0:11:10]}
axb5 {[%emt 0:00:07]} 32. Rgd2 {[%emt 0:00:30]} Ra3+ {[%emt 0:01:44]} 33. Rd3 {
[%emt 0:01:34]} Rxd3+ {[%emt 0:00:53]} 34. Kxd3 {[%emt 0:00:11]} Rxc4 {[%emt 0:
00:00]} 35. Ke3 {[%emt 0:03:31]} Rxb4 {[%emt 0:00:40]} 36. Rd3 {[%emt 0:00:57]}
d5 {[%emt 0:02:27]} 37. Ra3 {[%emt 0:01:58]} dxe4 {[%emt 0:02:02]} 38. Be2 {
[%emt 0:00:38]} Nd5+ {[%emt 0:00:34]} 39. Kf2 {[%emt 0:00:02]} Ra4 {[%emt 0:00:
00]} 0-1

[Event "44th Chess Olympiad Open 2022"]
[Site "Chennai"]
[Date "2022.08.06"]
[Round "8.48"]
[White "Christie, Joshua"]
[Black "Balogun, Oluwafemi"]
[Result "1-0"]
[WhiteElo "2272"]
[BlackElo "2274"]
[Annotator "NA RC"]
[PlyCount "65"]
[EventDate "2022.??.??"]
[TimeControl "60"]

1. d4 {[%emt 0:00:27]} Nf6 {[%emt 0:00:42]} 2. c4 {[%emt 0:00:33]} g6 {[%emt 0:
00:00]} 3. g3 {[%emt 0:00:49]} Bg7 {[%emt 0:02:01]} 4. Bg2 {[%emt 0:00:44]} O-O
{[%emt 0:01:18]} 5. Nc3 {[%emt 0:01:13]} c6 {[%emt 0:01:07]} 6. Nf3 {[%emt 0:
00:00]} d6 {[%emt 0:00:57]} 7. O-O {[%emt 0:00:34]} Bf5 {[%emt 0:02:45]} 8. Nh4
{[%emt 0:02:38]} Be6 {[%emt 0:01:48]} 9. d5 {[%emt 0:02:02]} Bd7 {[%emt 0:00:
00]} 10. Nf3 {[%emt 0:03:53]} cxd5 {[%emt 0:03:28]} 11. cxd5 {[%emt 0:00:29]}
Na6 {[%emt 0:03:43]} 12. Be3 {[%emt 0:03:46]} Qa5 {[%emt 0:06:16]} 13. Qd2 {
[%emt 0:21:09]} Rfc8 {[%emt 0:06:30]} 14. Bd4 {[%emt 0:11:18]} Nc5 {[%emt 0:00:
00]} 15. e4 {[%emt 0:03:20]} b5 {[%emt 0:22:00]} 16. e5 {[%emt 0:03:51]} dxe5 {
[%emt 0:07:33]} 17. Nxe5 {[%emt 0:03:27]} b4 {[%emt 0:00:27]} 18. Nxd7 {
[%emt 0:02:28]} Ncxd7 {[%emt 0:05:53]} 19. Nd1 {[%emt 0:01:55]} Rab8 {[%emt 0:
00:00]} 20. Ne3 {[%emt 0:01:12]} Nc5 {[%emt 0:05:15]} 21. Nc4 {[%emt 0:06:38]}
Qb5 {[%emt 0:01:22]} 22. Ne5 {[%emt 0:10:32]} Nce4 {[%emt 0:04:25]} 23. Qf4 {
[%emt 0:02:27]} Qxd5 {[%emt 0:03:58]} 24. Rad1 {[%emt 0:00:40]} Rb5 {[%emt 0:
00:00]} 25. Rfe1 {[%emt 0:01:05]} Qe6 {[%emt 0:00:58]} 26. Bxe4 {[%emt 0:05:08]
} Nh5 {[%emt 0:01:02]} 27. Qxf7+ {[%emt 0:02:46]} Qxf7 {[%emt 0:00:14]} 28.
Nxf7 {[%emt 0:00:08]} Bxd4 {[%emt 0:00:38]} 29. Rxd4 {[%emt 0:00:24]} Kxf7 {
[%emt 0:00:26]} 30. Rd7 {[%emt 0:00:49]} Nf6 {[%emt 0:00:30]} 31. Rxa7 {
[%emt 0:00:50]} Re5 {[%emt 0:00:30]} 32. Bxg6+ {[%emt 0:00:22]} Ke6 {[%emt 0:
00:00]} 33. Ra6+ {[%emt 0:00:17]} 1-0

[Event "44th Chess Olympiad Open 2022"]
[Site "Chennai"]
[Date "2022.08.06"]
[Round "8.48"]
[White "Kigigha, Bomo"]
[Black "Smith, Shreyas"]
[Result "0-1"]
[WhiteElo "2251"]
[BlackElo "2147"]
[Annotator "NA RC"]
[PlyCount "50"]
[EventDate "2022.??.??"]
[TimeControl "60"]

1. c4 {[%emt 0:00:11]} c6 {[%emt 0:00:08]} 2. Nf3 {[%emt 0:00:12]} d5 {[%emt 0:
00:00]} 3. g3 {[%emt 0:00:13]} Nf6 {[%emt 0:00:09]} 4. Bg2 {[%emt 0:00:07]}
dxc4 {[%emt 0:00:25]} 5. Na3 {[%emt 0:06:05]} b5 {[%emt 0:02:23]} 6. b3 {
[%emt 0:03:21]} cxb3 {[%emt 0:05:33]} 7. Qxb3 {[%emt 0:02:31]} e6 {[%emt 0:00:
00]} 8. Bb2 {[%emt 0:05:37]} Be7 {[%emt 0:00:56]} 9. Rc1 {[%emt 0:01:23]} O-O {
[%emt 0:01:08]} 10. Ne5 {[%emt 0:01:26]} Nd5 {[%emt 0:01:46]} 11. Nxc6 {
[%emt 0:11:04]} Nxc6 {[%emt 0:00:21]} 12. Rxc6 {[%emt 0:00:03]} Bb7 {[%emt 0:
00:00]} 13. Rc1 {[%emt 0:00:35]} a6 {[%emt 0:00:19]} 14. O-O {[%emt 0:00:07]}
Rb8 {[%emt 0:05:46]} 15. Nc2 {[%emt 0:04:07]} Qd7 {[%emt 0:04:01]} 16. d3 {
[%emt 0:02:20]} a5 {[%emt 0:04:59]} 17. d4 {[%emt 0:06:53]} Rfc8 {[%emt 0:00:
00]} 18. e4 {[%emt 0:01:56]} Nb6 {[%emt 0:02:10]} 19. Ne3 {[%emt 0:00:20]} Nc4
{[%emt 0:10:39]} 20. Nxc4 {[%emt 0:03:49]} bxc4 {[%emt 0:00:09]} 21. Qc2 {
[%emt 0:00:13]} c3 {[%emt 0:05:47]} 22. Ba1 {[%emt 0:19:25]} Ba6 {[%emt 0:00:
00]} 23. Rfe1 {[%emt 0:09:49]} Ba3 {[%emt 0:00:38]} 24. Rcd1 {[%emt 0:07:56]}
Bb5 {[%emt 0:00:21]} 25. Qb3 {[%emt 0:04:19]} Bb2 {[%emt 0:03:29]} 0-1

[Event "44th Chess Olympiad Open 2022"]
[Site "Chennai"]
[Date "2022.08.06"]
[Round "8.48"]
[White "Lorne, Ras Malaku"]
[Black "Adebayo, Adegboyega"]
[Result "1-0"]
[WhiteElo "2079"]
[BlackElo "2313"]
[Annotator "RC"]
[PlyCount "129"]
[EventDate "2022.??.??"]
[TimeControl "60"]

1. d4 {[%emt 0:00:09]} e6 {[%emt 0:00:17]} 2. Nf3 {[%emt 0:00:30]} f5 {[%emt 0:
00:00]} 3. c4 {[%emt 0:00:54]} Nf6 {[%emt 0:00:09]} 4. Nc3 {[%emt 0:00:49]} Bb4
{[%emt 0:02:01]} 5. Qb3 {[%emt 0:01:13]} a5 {[%emt 0:01:54]} 6. g3 {[%emt 0:00:
00]} b6 {[%emt 0:01:48]} 7. Bg2 {[%emt 0:00:51]} Bb7 {[%emt 0:00:42]} 8. O-O {
[%emt 0:03:33]} O-O {[%emt 0:01:26]} 9. a3 {[%emt 0:13:05]} Bxc3 {[%emt 0:00:
00]} 10. Qxc3 {[%emt 0:00:26]} a4 {[%emt 0:02:02]} 11. Bg5 {[%emt 0:11:01]} d6
{[%emt 0:06:18]} 12. c5 {[%emt 0:05:55]} Bd5 {[%emt 0:10:36]} 13. cxd6 {
[%emt 0:05:46]} cxd6 {[%emt 0:01:05]} 14. Nd2 {[%emt 0:01:14]} Nbd7 {[%emt 0:
00:00]} 15. Rac1 {[%emt 0:11:45]} h6 {[%emt 0:13:48]} 16. Bxd5 {[%emt 0:04:53]}
Nxd5 {[%emt 0:04:33]} 17. Bxd8 {[%emt 0:00:30]} Nxc3 {[%emt 0:00:10]} 18. Rxc3
{[%emt 0:00:16]} Rfxd8 {[%emt 0:01:56]} 19. Rc6 {[%emt 0:02:44]} e5 {[%emt 0:
00:00]} 20. Rxd6 {[%emt 0:06:40]} exd4 {[%emt 0:00:31]} 21. Nf3 {[%emt 0:00:49]
} Nc5 {[%emt 0:05:36]} 22. Rxd4 {[%emt 0:04:18]} Rxd4 {[%emt 0:01:08]} 23. Nxd4
{[%emt 0:00:06]} Rd8 {[%emt 0:00:55]} 24. e3 {[%emt 0:03:43]} Rd5 {[%emt 0:00:
00]} 25. Rc1 {[%emt 0:01:49]} Kf7 {[%emt 0:00:17]} 26. Kf1 {[%emt 0:01:14]} Kf6
{[%emt 0:02:03]} 27. Ke2 {[%emt 0:00:29]} g5 {[%emt 0:00:52]} 28. Rc4 {[%emt 0:
00:00]} Ke5 {[%emt 0:02:38]} 29. Rb4 {[%emt 0:01:39]} Rd6 {[%emt 0:02:19]} 30.
Nb5 {[%emt 0:04:40]} Rc6 {[%emt 0:00:21]} 31. Nc3 {[%emt 0:00:36]} g4 {[%emt 0:
00:00]} 32. Rc4 {[%emt 0:01:39]} Kd6 {[%emt 0:01:35]} 33. Rd4+ {[%emt 0:01:26]}
Ke5 {[%emt 0:01:27]} 34. Rc4 {[%emt 0:00:23]} Kd6 {[%emt 0:00:18]} 35. Kd1 {
[%emt 0:00:12]} h5 {[%emt 0:04:14]} 36. Ke2 {[%emt 0:03:00]} Kd7 {[%emt 0:00:
00]} 37. Rd4+ {[%emt 0:02:09]} Ke6 {[%emt 0:02:39]} 38. f4 {[%emt 0:01:38]} Rc7
{[%emt 0:05:20]} 39. Rb4 {[%emt 0:00:37]} Rc6 {[%emt 0:01:00]} 40. Rc4 {
[%emt 0:00:26]} Kd7 {[%emt 0:00:42]} 41. Rd4+ {[%emt 0:03:01]} Ke6 {[%emt 0:00:
00]} 42. Kd1 {[%emt 0:00:42]} Rc8 {[%emt 0:04:04]} 43. Ke2 {[%emt 0:11:49]} Rc6
{[%emt 0:05:26]} 44. e4 {[%emt 0:01:55]} fxe4 {[%emt 0:00:44]} 45. Ke3 {
[%emt 0:00:35]} Kf7 {[%emt 0:06:49]} 46. Rc4 {[%emt 0:05:27]} Rd6 {[%emt 0:00:
00]} 47. Nxe4 {[%emt 0:01:41]} Nxe4 {[%emt 0:00:39]} 48. Rxe4 {[%emt 0:00:08]}
Rd1 {[%emt 0:00:26]} 49. Re5 {[%emt 0:00:16]} Kg6 {[%emt 0:04:51]} 50. Re6+ {
[%emt 0:00:28]} Kg7 {[%emt 0:00:07]} 51. f5 {[%emt 0:02:01]} Rf1 {[%emt 0:00:
00]} 52. Rxb6 {[%emt 0:00:33]} Rxf5 {[%emt 0:00:19]} 53. Rb4 {[%emt 0:00:36]}
Ra5 {[%emt 0:03:18]} 54. Kd4 {[%emt 0:02:10]} Rf5 {[%emt 0:01:20]} 55. Rxa4 {
[%emt 0:00:26]} Rf2 {[%emt 0:00:05]} 56. b4 {[%emt 0:00:08]} h4 {[%emt 0:02:49]
} 57. gxh4 {[%emt 0:00:58]} Kh6 {[%emt 0:00:26]} 58. Ra5 {[%emt 0:01:41]} Rxh2
{[%emt 0:00:25]} 59. Ke3 {[%emt 0:00:34]} Rg2 {[%emt 0:01:07]} 60. Kf4 {
[%emt 0:00:24]} Rg1 {[%emt 0:00:29]} 61. Rg5 {[%emt 0:02:08]} Ra1 {[%emt 0:00:
00]} 62. Rxg4 {[%emt 0:00:36]} Rxa3 {[%emt 0:00:06]} 63. Ke4 {[%emt 0:00:14]}
Kh5 {[%emt 0:01:14]} 64. Rf4 {[%emt 0:00:06]} Rc3 {[%emt 0:02:13]} 65. Kd5 {
[%emt 0:00:12]} 1-0

[Event "44th Chess Olympiad Open 2022"]
[Site "Chennai"]
[Date "2022.08.06"]
[Round "8.49"]
[White "Berend, Fred"]
[Black "Abera, Aydagnuhem Gezachew"]
[Result "1-0"]
[WhiteElo "2307"]
[BlackElo "2137"]
[Annotator "RC"]
[PlyCount "82"]
[EventDate "2022.??.??"]
[TimeControl "60"]

1. d4 {[%emt 0:00:10]} d5 {[%emt 0:00:14]} 2. c4 {[%emt 0:00:04]} e6 {[%emt 0:
00:00]} 3. g3 {[%emt 0:00:10]} Nf6 {[%emt 0:00:17]} 4. Bg2 {[%emt 0:00:03]} c6
{[%emt 0:00:08]} 5. Nf3 {[%emt 0:00:28]} Be7 {[%emt 0:00:38]} 6. Qc2 {[%emt 0:
00:00]} Na6 {[%emt 0:01:46]} 7. Nbd2 {[%emt 0:00:55]} O-O {[%emt 0:01:20]} 8.
O-O {[%emt 0:00:11]} Bd7 {[%emt 0:00:46]} 9. e4 {[%emt 0:03:27]} dxe4 {[%emt 0:
00:00]} 10. Nxe4 {[%emt 0:00:28]} Nxe4 {[%emt 0:00:30]} 11. Qxe4 {[%emt 0:00:
00]} Nc7 {[%emt 0:00:48]} 12. b3 {[%emt 0:01:28]} Ne8 {[%emt 0:02:39]} 13. Bb2
{[%emt 0:01:59]} Nf6 {[%emt 0:03:31]} 14. Qc2 {[%emt 0:00:06]} Qa5 {[%emt 0:00:
00]} 15. Rfe1 {[%emt 0:05:12]} Qh5 {[%emt 0:04:38]} 16. Ne5 {[%emt 0:06:22]}
Rfd8 {[%emt 0:06:59]} 17. h3 {[%emt 0:01:09]} Ne8 {[%emt 0:10:49]} 18. Rad1 {
[%emt 0:01:25]} Nd6 {[%emt 0:04:38]} 19. Bc1 {[%emt 0:08:36]} Bg5 {[%emt 0:00:
00]} 20. Bf3 {[%emt 0:03:26]} Qh6 {[%emt 0:07:58]} 21. Ng4 {[%emt 0:02:15]}
Bxc1 {[%emt 0:08:56]} 22. Nxh6+ {[%emt 0:02:09]} Bxh6 {[%emt 0:00:06]} 23. h4 {
[%emt 0:03:34]} g6 {[%emt 0:00:27]} 24. h5 {[%emt 0:00:49]} Bg7 {[%emt 0:02:36]
} 25. hxg6 {[%emt 0:06:17]} hxg6 {[%emt 0:00:30]} 26. g4 {[%emt 0:00:10]} Bh6 {
[%emt 0:01:25]} 27. Kg2 {[%emt 0:00:33]} Bf4 {[%emt 0:02:24]} 28. Qc3 {[%emt 0:
00:00]} f6 {[%emt 0:03:16]} 29. d5 {[%emt 0:15:43]} Kf7 {[%emt 0:01:30]} 30.
Rh1 {[%emt 0:13:19]} Rh8 {[%emt 0:02:22]} 31. dxc6 {[%emt 0:03:44]} Bxc6 {
[%emt 0:02:43]} 32. Bxc6 {[%emt 0:00:18]} bxc6 {[%emt 0:00:05]} 33. Qf3 {
[%emt 0:00:03]} Rxh1 {[%emt 0:05:27]} 34. Rxh1 {[%emt 0:00:14]} g5 {[%emt 0:00:
00]} 35. Qxc6 {[%emt 0:06:14]} Rg8 {[%emt 0:01:23]} 36. Qd7+ {[%emt 0:00:48]}
Kf8 {[%emt 0:00:15]} 37. Qxe6 {[%emt 0:01:33]} Kg7 {[%emt 0:00:16]} 38. Rd1 {
[%emt 0:00:43]} Nf7 {[%emt 0:01:32]} 39. Rd7 {[%emt 0:00:16]} Rf8 {[%emt 0:00:
00]} 40. Rxa7 {[%emt 0:00:22]} Kg6 {[%emt 0:00:23]} 41. Qf5+ {[%emt 0:30:15]}
Kg7 {[%emt 0:30:54]} 1-0

[Event "44th Chess Olympiad Open 2022"]
[Site "Chennai"]
[Date "2022.08.06"]
[Round "8.49"]
[White "Gengler, Pierre"]
[Black "Tsige, Addisalem Temesgen"]
[Result "1-0"]
[WhiteElo "2194"]
[BlackElo "2072"]
[Annotator "RC"]
[PlyCount "109"]
[EventDate "2022.??.??"]
[TimeControl "60"]

1. g3 {[%emt 0:00:02]} c5 {[%emt 0:00:19]} 2. Bg2 {[%emt 0:00:05]} g6 {[%emt 0:
00:00]} 3. e4 {[%emt 0:00:31]} Nc6 {[%emt 0:00:30]} 4. Ne2 {[%emt 0:00:07]} Bg7
{[%emt 0:00:22]} 5. O-O {[%emt 0:00:06]} d6 {[%emt 0:00:57]} 6. c3 {[%emt 0:00:
00]} e5 {[%emt 0:00:59]} 7. Na3 {[%emt 0:01:19]} Nge7 {[%emt 0:00:23]} 8. Nc2 {
[%emt 0:00:42]} Bg4 {[%emt 0:03:01]} 9. Ne3 {[%emt 0:00:09]} Be6 {[%emt 0:00:
00]} 10. f4 {[%emt 0:00:38]} f5 {[%emt 0:03:54]} 11. g4 {[%emt 0:12:38]} Qd7 {
[%emt 0:03:26]} 12. gxf5 {[%emt 0:01:36]} gxf5 {[%emt 0:00:39]} 13. Ng3 {
[%emt 0:11:55]} O-O-O {[%emt 0:10:08]} 14. fxe5 {[%emt 0:03:04]} fxe4 {[%emt 0:
00:00]} 15. exd6 {[%emt 0:06:26]} Nd5 {[%emt 0:06:31]} 16. d3 {[%emt 0:06:00]}
Nxe3 {[%emt 0:05:42]} 17. Bxe3 {[%emt 0:02:46]} Bg4 {[%emt 0:02:41]} 18. Qa4 {
[%emt 0:01:07]} Bf3 {[%emt 0:00:18]} 19. dxe4 {[%emt 0:04:34]} Bxg2 {[%emt 0:
00:00]} 20. Kxg2 {[%emt 0:00:04]} b6 {[%emt 0:00:25]} 21. Rad1 {[%emt 0:05:13]}
Kb7 {[%emt 0:09:06]} 22. Qb3 {[%emt 0:13:23]} Rdf8 {[%emt 0:01:47]} 23. Bxc5 {
[%emt 0:01:16]} h5 {[%emt 0:00:14]} 24. Rxf8 {[%emt 0:11:01]} Rxf8 {[%emt 0:00:
00]} 25. Nf5 {[%emt 0:00:33]} Re8 {[%emt 0:06:53]} 26. Rf1 {[%emt 0:04:29]} Rf8
{[%emt 0:03:13]} 27. Bf2 {[%emt 0:01:27]} Be5 {[%emt 0:00:27]} 28. Bg3 {
[%emt 0:00:07]} Bxg3 {[%emt 0:01:07]} 29. hxg3 {[%emt 0:00:25]} Kb8 {[%emt 0:
00:00]} 30. Qd5 {[%emt 0:00:43]} Re8 {[%emt 0:01:11]} 31. Nd4 {[%emt 0:00:29]}
Ne5 {[%emt 0:00:28]} 32. Rf5 {[%emt 0:00:21]} Ng4 {[%emt 0:01:42]} 33. Qf7 {
[%emt 0:04:02]} Kc8 {[%emt 0:03:40]} 34. Qxd7+ {[%emt 0:03:15]} Kxd7 {[%emt 0:
00:00]} 35. Rxh5 {[%emt 0:00:14]} Kxd6 {[%emt 0:03:13]} 36. Nb5+ {[%emt 0:00:
00]} Kc6 {[%emt 0:01:32]} 37. Nxa7+ {[%emt 0:00:11]} Kb7 {[%emt 0:00:09]} 38.
Rh7+ {[%emt 0:00:11]} Ka6 {[%emt 0:00:54]} 39. Nc6 {[%emt 0:00:27]} Kb5 {
[%emt 0:00:45]} 40. Nb4 {[%emt 0:00:24]} Ne3+ {[%emt 0:12:17]} 41. Kf3 {
[%emt 0:31:10]} Nf1 {[%emt 0:32:40]} 42. b3 {[%emt 0:04:15]} Nd2+ {[%emt 0:00:
00]} 43. Kg2 {[%emt 0:01:34]} Nxe4 {[%emt 0:02:20]} 44. Rh5+ {[%emt 0:00:26]}
Nc5 {[%emt 0:00:02]} 45. a4+ {[%emt 0:00:00]} Ka5 {[%emt 0:00:00]} 46. Nd5 {
[%emt 0:00:00]} Nd3 {[%emt 0:00:00]} 47. Nc7+ {[%emt 0:00:00]} Re5 {[%emt 0:00:
00]} 48. Rxe5+ {[%emt 0:00:00]} Nxe5 {[%emt 0:00:00]} 49. Kh3 {[%emt 0:00:00]}
Nf3 {[%emt 0:00:00]} 50. g4 {[%emt 0:00:00]} Nd2 {[%emt 0:00:00]} 51. g5 {
[%emt 0:00:00]} Ne4 {[%emt 0:00:00]} 52. g6 {[%emt 0:00:00]} b5 {[%emt 0:00:00]
} 53. Nxb5 {[%emt 0:00:00]} Kb6 {[%emt 0:00:00]} 54. g7 {[%emt 0:00:00]} Nf6 {
[%emt 0:00:00]} 55. Kh4 {[%emt 0:00:00]} 1-0